[Event "Titled Tuesday Blitz November 16 2021"]
[White "Petesch, Gabriel"]
[Black "Le, Tuan Minh"]
[WhiteFideId "2032465"]
[BlackFideId "12401153"]
[WhiteElo "2374"]
[BlackElo "2450"]
[Result "0-1"]
[Round "02"]
[TimeControl "180+1"]
[Date "2021.11.16"]
[WhiteClock "0:00:01"]
[BlackClock "0:00:23"]

1. Nf3 {[%clk 0:03:00]}  d5 {[%clk 0:02:59]} 2. g3 {[%clk 0:02:58]}  Nd7 {[%clk 0:03:00]} 3. Bg2 {[%clk 0:02:56]}  e5 {[%clk 0:03:00]} 4. O-O {[%clk 0:02:51]}  Ngf6 {[%clk 0:03:00]} 5. d4 {[%clk 0:02:50]}  e4 {[%clk 0:02:56]} 6. Ne5 {[%clk 0:02:42]}  Bd6 {[%clk 0:02:56]} 7. c4 {[%clk 0:02:32]}  c6 {[%clk 0:02:38]} 8. Bf4 {[%clk 0:02:24]}  Qe7 {[%clk 0:02:35]} 9. Nxd7 {[%clk 0:02:12]}  Bxd7 {[%clk 0:02:34]} 10. Bxd6 {[%clk 0:02:04]}  Qxd6 {[%clk 0:02:35]} 11. Nc3 {[%clk 0:02:05]}  O-O {[%clk 0:02:31]} 12. Qb3 {[%clk 0:02:05]}  dxc4 {[%clk 0:02:09]} 13. Qxc4 {[%clk 0:02:06]}  Rfe8 {[%clk 0:02:05]} 14. Rfd1 {[%clk 0:01:53]}  Be6 {[%clk 0:01:55]} 15. Qc5 {[%clk 0:01:20]}  Qxc5 {[%clk 0:01:15]} 16. dxc5 {[%clk 0:01:21]}  Bf5 {[%clk 0:01:15]} 17. Rd4 {[%clk 0:01:13]}  Re5 {[%clk 0:01:13]} 18. Rad1 {[%clk 0:01:09]}  Kf8 {[%clk 0:01:04]} 19. b4 {[%clk 0:00:59]}  a5 {[%clk 0:01:04]} 20. Rd8+ {[%clk 0:00:44]}  Rxd8 {[%clk 0:01:03]} 21. Rxd8+ {[%clk 0:00:43]}  Ke7 {[%clk 0:00:51]} 22. Rb8 {[%clk 0:00:38]}  axb4 {[%clk 0:00:52]} 23. Rxb7+ {[%clk 0:00:37]}  Kd8 {[%clk 0:00:46]} 24. Na4 {[%clk 0:00:20]}  Rd5 {[%clk 0:00:45]} 25. h3 {[%clk 0:00:15]}  Rd1+ {[%clk 0:00:45]} 26. Kh2 {[%clk 0:00:15]}  Rd2 {[%clk 0:00:46]} 27. Rxf7 {[%clk 0:00:09]}  Rxa2 {[%clk 0:00:43]} 28. Nb6 {[%clk 0:00:07]}  b3 {[%clk 0:00:44]} 29. Nc4 {[%clk 0:00:07]}  Be6 {[%clk 0:00:44]} 30. Rxg7 {[%clk 0:00:04]}  Bxc4 {[%clk 0:00:44]} 31. Rb7 {[%clk 0:00:03]}  Rxe2 {[%clk 0:00:42]} 32. Kg1 {[%clk 0:00:02]}  b2 {[%clk 0:00:42]} 33. Bf1 {[%clk 0:00:02]}  Rxf2 {[%clk 0:00:43]} 34. Bxc4 {[%clk 0:00:01]}  Rc2 {[%clk 0:00:25]} 35. Ba2 {[%clk 0:00:01]}  Nd5 {[%clk 0:00:24]} 36. Kf1 {[%clk 0:00:02]}  Nc3 {[%clk 0:00:24]} 37. Be6 {[%clk 0:00:01]}  b1=Q+ {[%clk 0:00:23]} 0-1


[Site "https://www.chess.com"]

[Event "Titled Tuesday Blitz November 16 2021"]
[White "Svidler, Peter"]
[Black "Tatarinov, Dmitry"]
[WhiteFideId "4102142"]
[BlackFideId "24160067"]
[WhiteElo "2709"]
[BlackElo "2295"]
[Result "1-0"]
[Round "02"]
[TimeControl "180+1"]
[Date "2021.11.16"]
[WhiteClock "0:00:17"]
[BlackClock "0:00:13"]

1. e4 {[%clk 0:03:00]}  c6 {[%clk 0:02:55]} 2. d4 {[%clk 0:02:59]}  d5 {[%clk 0:02:56]} 3. e5 {[%clk 0:02:59]}  c5 {[%clk 0:02:56]} 4. dxc5 {[%clk 0:02:59]}  e6 {[%clk 0:02:56]} 5. a3 {[%clk 0:02:58]}  Bxc5 {[%clk 0:02:56]} 6. Qg4 {[%clk 0:02:57]}  Kf8 {[%clk 0:02:52]} 7. b4 {[%clk 0:02:53]}  Bb6 {[%clk 0:02:52]} 8. Nf3 {[%clk 0:02:53]}  Nc6 {[%clk 0:02:52]} 9. Bd3 {[%clk 0:02:50]}  h5 {[%clk 0:02:48]} 10. Qf4 {[%clk 0:02:43]}  Nh6 {[%clk 0:02:37]} 11. h3 {[%clk 0:02:24]}  Nf5 {[%clk 0:02:32]} 12. Nc3 {[%clk 0:02:00]}  Nce7 {[%clk 0:02:25]} 13. Nb5 {[%clk 0:01:44]}  Ng6 {[%clk 0:02:18]} 14. Qg5 {[%clk 0:01:43]}  Qxg5 {[%clk 0:02:18]} 15. Bxg5 {[%clk 0:01:42]}  Bd7 {[%clk 0:02:17]} 16. Bxf5 {[%clk 0:01:25]}  Bxb5 {[%clk 0:02:11]} 17. Bxg6 {[%clk 0:01:24]}  fxg6 {[%clk 0:02:12]} 18. Be3 {[%clk 0:01:23]}  Rc8 {[%clk 0:02:03]} 19. Bxb6 {[%clk 0:01:22]}  axb6 {[%clk 0:02:04]} 20. Nd4 {[%clk 0:01:22]}  Bd7 {[%clk 0:02:04]} 21. Kd2 {[%clk 0:01:22]}  Ke7 {[%clk 0:02:01]} 22. h4 {[%clk 0:01:22]}  Rc4 {[%clk 0:02:00]} 23. c3 {[%clk 0:01:22]}  Rf8 {[%clk 0:01:58]} 24. f3 {[%clk 0:01:21]}  Ra8 {[%clk 0:01:51]} 25. Rh3 {[%clk 0:01:19]}  Be8 {[%clk 0:01:50]} 26. Rg3 {[%clk 0:01:12]}  Ra7 {[%clk 0:01:48]} 27. Kc2 {[%clk 0:01:09]}  Ra8 {[%clk 0:01:47]} 28. Kb2 {[%clk 0:01:09]}  Rac8 {[%clk 0:01:44]} 29. Rc1 {[%clk 0:01:09]}  Ra8 {[%clk 0:01:44]} 30. Re1 {[%clk 0:01:08]}  Rac8 {[%clk 0:01:44]} 31. Re3 {[%clk 0:01:08]}  Ra8 {[%clk 0:01:43]} 32. Rg5 {[%clk 0:01:08]}  Ra7 {[%clk 0:01:24]} 33. g4 {[%clk 0:01:08]}  hxg4 {[%clk 0:01:25]} 34. fxg4 {[%clk 0:01:08]}  Rc8 {[%clk 0:01:26]} 35. h5 {[%clk 0:01:07]}  Rca8 {[%clk 0:01:26]} 36. Nc2 {[%clk 0:00:57]}  Rc8 {[%clk 0:01:02]} 37. Rf3 {[%clk 0:00:53]}  Rc4 {[%clk 0:00:51]} 38. Nd4 {[%clk 0:00:53]}  Rc8 {[%clk 0:00:45]} 39. hxg6 {[%clk 0:00:53]}  Rca8 {[%clk 0:00:45]} 40. Rh5 {[%clk 0:00:39]}  Rxa3 {[%clk 0:00:43]} 41. Rh7 {[%clk 0:00:38]}  Ra2+ {[%clk 0:00:43]} 42. Kc1 {[%clk 0:00:33]}  Ra1+ {[%clk 0:00:30]} 43. Kd2 {[%clk 0:00:33]}  R8a2+ {[%clk 0:00:30]} 44. Ke3 {[%clk 0:00:33]}  Re1+ {[%clk 0:00:29]} 45. Kf4 {[%clk 0:00:33]}  Re4+ {[%clk 0:00:30]} 46. Kg5 {[%clk 0:00:33]}  Rxe5+ {[%clk 0:00:22]} 47. Kf4 {[%clk 0:00:18]}  Re4+ {[%clk 0:00:21]} 48. Kg3 {[%clk 0:00:18]}  Kd6 {[%clk 0:00:17]} 49. Rxg7 {[%clk 0:00:18]}  Ra1 {[%clk 0:00:17]} 50. Rg8 {[%clk 0:00:17]}  Rg1+ {[%clk 0:00:17]} 51. Kf2 {[%clk 0:00:17]}  Rexg4 {[%clk 0:00:12]} 52. Rxe8 {[%clk 0:00:16]}  R1g2+ {[%clk 0:00:12]} 53. Ke3 {[%clk 0:00:16]}  Re4+ {[%clk 0:00:12]} 54. Kd3 {[%clk 0:00:16]}  Rxg6 {[%clk 0:00:13]} 55. Re3 {[%clk 0:00:16]}  Rxe3+ {[%clk 0:00:13]} 56. Kxe3 {[%clk 0:00:17]}  Rg3+ {[%clk 0:00:12]} 57. Kd2 {[%clk 0:00:17]}  e5 {[%clk 0:00:13]} 58. Nf5+ {[%clk 0:00:17]} 1-0


[Site "https://www.chess.com"]

[Event "Titled Tuesday Blitz November 16 2021"]
[White "Tari, Aryan"]
[Black "Aloma Vidal, Robert"]
[WhiteFideId "1510045"]
[BlackFideId "2260409"]
[WhiteElo "2656"]
[BlackElo "2435"]
[Result "1-0"]
[Round "02"]
[TimeControl "180+1"]
[Date "2021.11.16"]
[WhiteClock "0:00:03"]
[BlackClock "0:00:02"]

1. d4 {[%clk 0:02:57]}  d5 {[%clk 0:03:00]} 2. c3 {[%clk 0:02:56]}  Nf6 {[%clk 0:02:57]} 3. Nf3 {[%clk 0:02:55]}  Bf5 {[%clk 0:02:53]} 4. Bf4 {[%clk 0:02:51]}  e6 {[%clk 0:02:48]} 5. Qb3 {[%clk 0:02:42]}  b6 {[%clk 0:02:47]} 6. e3 {[%clk 0:02:40]}  Bd6 {[%clk 0:02:46]} 7. Ne5 {[%clk 0:02:27]}  O-O {[%clk 0:02:44]} 8. h3 {[%clk 0:02:26]}  Bg6 {[%clk 0:02:30]} 9. Be2 {[%clk 0:02:24]}  Nfd7 {[%clk 0:02:26]} 10. Nxg6 {[%clk 0:02:18]}  hxg6 {[%clk 0:02:26]} 11. Bxd6 {[%clk 0:02:19]}  cxd6 {[%clk 0:02:26]} 12. Nd2 {[%clk 0:02:08]}  Nc6 {[%clk 0:02:24]} 13. Qa3 {[%clk 0:02:05]}  Qe7 {[%clk 0:02:22]} 14. e4 {[%clk 0:01:58]}  Nf6 {[%clk 0:02:13]} 15. e5 {[%clk 0:01:53]}  dxe5 {[%clk 0:02:13]} 16. Qxe7 {[%clk 0:01:51]}  Nxe7 {[%clk 0:02:14]} 17. dxe5 {[%clk 0:01:51]}  Nd7 {[%clk 0:02:14]} 18. f4 {[%clk 0:01:50]}  g5 {[%clk 0:02:11]} 19. Bb5 {[%clk 0:01:47]}  Rfd8 {[%clk 0:01:48]} 20. Bxd7 {[%clk 0:01:46]}  Rxd7 {[%clk 0:01:48]} 21. fxg5 {[%clk 0:01:47]}  d4 {[%clk 0:01:49]} 22. c4 {[%clk 0:01:32]}  d3 {[%clk 0:01:49]} 23. O-O {[%clk 0:01:31]}  Ng6 {[%clk 0:01:43]} 24. Rae1 {[%clk 0:01:31]}  Rc8 {[%clk 0:01:41]} 25. b4 {[%clk 0:01:22]}  Rd4 {[%clk 0:01:38]} 26. a3 {[%clk 0:01:15]}  a5 {[%clk 0:01:34]} 27. bxa5 {[%clk 0:01:10]}  bxa5 {[%clk 0:01:35]} 28. Re3 {[%clk 0:01:00]}  Rc5 {[%clk 0:01:29]} 29. Rfe1 {[%clk 0:00:58]}  a4 {[%clk 0:01:25]} 30. g3 {[%clk 0:00:56]}  Ne7 {[%clk 0:01:18]} 31. Re4 {[%clk 0:00:52]}  Rd7 {[%clk 0:01:11]} 32. Rb1 {[%clk 0:00:48]}  Nf5 {[%clk 0:01:08]} 33. Kf2 {[%clk 0:00:47]}  Kh7 {[%clk 0:01:02]} 34. g4 {[%clk 0:00:43]}  Nd4 {[%clk 0:01:00]} 35. Rb4 {[%clk 0:00:41]}  Nb3 {[%clk 0:00:58]} 36. Ke1 {[%clk 0:00:38]}  Kg6 {[%clk 0:00:40]} 37. h4 {[%clk 0:00:37]}  Na1 {[%clk 0:00:23]} 38. Rxa4 {[%clk 0:00:34]}  Rb7 {[%clk 0:00:23]} 39. Kf2 {[%clk 0:00:29]}  Rb2 {[%clk 0:00:13]} 40. Ke3 {[%clk 0:00:29]}  Rc7 {[%clk 0:00:12]} 41. Ra6 {[%clk 0:00:24]}  Nc2+ {[%clk 0:00:11]} 42. Kxd3 {[%clk 0:00:24]}  Ra2 {[%clk 0:00:10]} 43. Kc3 {[%clk 0:00:20]}  Rd7 {[%clk 0:00:06]} 44. c5 {[%clk 0:00:14]}  Nxa3 {[%clk 0:00:05]} 45. c6 {[%clk 0:00:14]}  Rdxd2 {[%clk 0:00:03]} 46. Kb3 {[%clk 0:00:15]}  Rdb2+ {[%clk 0:00:02]} 47. Kc3 {[%clk 0:00:15]}  Rc2+ {[%clk 0:00:03]} 48. Kd4 {[%clk 0:00:12]}  Nb5+ {[%clk 0:00:02]} 49. Kd3 {[%clk 0:00:13]}  Rxa6 {[%clk 0:00:03]} 50. Kxc2 {[%clk 0:00:14]}  Rxc6+ {[%clk 0:00:03]} 51. Kd3 {[%clk 0:00:15]}  Nc7 {[%clk 0:00:04]} 52. Ra4 {[%clk 0:00:13]}  Nd5 {[%clk 0:00:04]} 53. Ra8 {[%clk 0:00:13]}  Rc7 {[%clk 0:00:03]} 54. Ke4 {[%clk 0:00:12]}  Rc4+ {[%clk 0:00:03]} 55. Kf3 {[%clk 0:00:13]}  Rf4+ {[%clk 0:00:03]} 56. Kg3 {[%clk 0:00:14]}  Re4 {[%clk 0:00:04]} 57. Rg8 {[%clk 0:00:13]}  Rxe5 {[%clk 0:00:04]} 58. Kf3 {[%clk 0:00:13]}  Re3+ {[%clk 0:00:03]} 59. Kf2 {[%clk 0:00:14]}  Rc3 {[%clk 0:00:03]} 60. Rd8 {[%clk 0:00:13]}  Ne3 {[%clk 0:00:03]} 61. Rd4 {[%clk 0:00:08]}  Nd5 {[%clk 0:00:03]} 62. Ra4 {[%clk 0:00:07]}  f6 {[%clk 0:00:04]} 63. gxf6 {[%clk 0:00:07]}  gxf6 {[%clk 0:00:04]} 64. Ra8 {[%clk 0:00:07]}  Rc4 {[%clk 0:00:03]} 65. Kg3 {[%clk 0:00:07]}  Rc3+ {[%clk 0:00:03]} 66. Kf2 {[%clk 0:00:07]}  f5 {[%clk 0:00:03]} 67. h5+ {[%clk 0:00:05]}  Kg5 {[%clk 0:00:03]} 68. Rg8+ {[%clk 0:00:05]}  Kf4 {[%clk 0:00:02]} 69. h6 {[%clk 0:00:03]}  Rc2+ {[%clk 0:00:02]} 70. Kg1 {[%clk 0:00:03]} 1-0


[Site "https://www.chess.com"]

[Event "Titled Tuesday Blitz November 16 2021"]
[White "Tasev, Dejan"]
[Black "Sadhwani, Raunak"]
[WhiteFideId "936618"]
[BlackFideId "35093487"]
[WhiteElo "2253"]
[BlackElo "2517"]
[Result "0-1"]
[Round "02"]
[TimeControl "180+1"]
[Date "2021.11.16"]
[WhiteClock "0:00:47"]
[BlackClock "0:00:38"]

1. e4 {[%clk 0:03:00]}  e5 {[%clk 0:02:59]} 2. Nf3 {[%clk 0:02:59]}  Nc6 {[%clk 0:02:59]} 3. Bc4 {[%clk 0:03:00]}  Bc5 {[%clk 0:02:58]} 4. Nc3 {[%clk 0:02:59]}  Nf6 {[%clk 0:02:57]} 5. d3 {[%clk 0:03:00]}  O-O {[%clk 0:02:57]} 6. h3 {[%clk 0:02:59]}  a6 {[%clk 0:02:52]} 7. Bb3 {[%clk 0:02:59]}  Re8 {[%clk 0:02:35]} 8. Be3 {[%clk 0:02:58]}  d6 {[%clk 0:02:31]} 9. Qd2 {[%clk 0:02:55]}  Bxe3 {[%clk 0:02:26]} 10. fxe3 {[%clk 0:02:53]}  Be6 {[%clk 0:02:26]} 11. O-O {[%clk 0:02:53]}  Bxb3 {[%clk 0:02:25]} 12. axb3 {[%clk 0:02:53]}  Ne7 {[%clk 0:02:26]} 13. Nh4 {[%clk 0:02:50]}  c6 {[%clk 0:02:22]} 14. Nf5 {[%clk 0:02:50]}  Nxf5 {[%clk 0:02:12]} 15. Rxf5 {[%clk 0:02:49]}  d5 {[%clk 0:02:13]} 16. exd5 {[%clk 0:02:46]}  cxd5 {[%clk 0:02:14]} 17. Raf1 {[%clk 0:02:44]}  Rc8 {[%clk 0:02:00]} 18. Qf2 {[%clk 0:02:36]}  d4 {[%clk 0:01:58]} 19. exd4 {[%clk 0:02:31]}  exd4 {[%clk 0:01:53]} 20. Ne4 {[%clk 0:02:21]}  Nxe4 {[%clk 0:01:50]} 21. dxe4 {[%clk 0:02:21]}  f6 {[%clk 0:01:47]} 22. Qg3 {[%clk 0:01:20]}  Rxc2 {[%clk 0:01:20]} 23. Rxf6 {[%clk 0:01:14]}  Rc1 {[%clk 0:01:20]} 24. Rxc1 {[%clk 0:01:06]}  Qxf6 {[%clk 0:01:20]} 25. Rc7 {[%clk 0:01:06]}  Rxe4 {[%clk 0:00:47]} 26. Rxb7 {[%clk 0:01:02]}  h5 {[%clk 0:00:42]} 27. Qd3 {[%clk 0:00:50]}  Re1+ {[%clk 0:00:38]} 28. Kh2 {[%clk 0:00:47]}  Qf4+ {[%clk 0:00:38]} 0-1


[Site "https://www.chess.com"]

[Event "Titled Tuesday Blitz November 16 2021"]
[White "Thorhallsson, Simon"]
[Black "Sorokin, Aleksey"]
[WhiteFideId "2310090"]
[BlackFideId "24176460"]
[WhiteElo "2174"]
[BlackElo "2476"]
[Result "0-1"]
[Round "02"]
[TimeControl "180+1"]
[Date "2021.11.16"]
[WhiteClock "0:01:06"]
[BlackClock "0:00:48"]

1. e4 {[%clk 0:03:00]}  c5 {[%clk 0:02:59]} 2. Nf3 {[%clk 0:02:59]}  d6 {[%clk 0:03:00]} 3. d4 {[%clk 0:03:00]}  cxd4 {[%clk 0:02:58]} 4. Nxd4 {[%clk 0:03:01]}  Nf6 {[%clk 0:02:58]} 5. Nc3 {[%clk 0:03:01]}  a6 {[%clk 0:02:58]} 6. Be2 {[%clk 0:03:01]}  e5 {[%clk 0:02:58]} 7. Nb3 {[%clk 0:03:01]}  Be7 {[%clk 0:02:57]} 8. Bg5 {[%clk 0:03:02]}  Be6 {[%clk 0:02:55]} 9. Bxf6 {[%clk 0:03:02]}  Bxf6 {[%clk 0:02:55]} 10. Qd3 {[%clk 0:03:03]}  Be7 {[%clk 0:02:39]} 11. Nd5 {[%clk 0:03:02]}  Nd7 {[%clk 0:02:37]} 12. Nxe7 {[%clk 0:03:02]}  Kxe7 {[%clk 0:02:36]} 13. O-O-O {[%clk 0:02:59]}  Nf6 {[%clk 0:02:30]} 14. g4 {[%clk 0:02:35]}  h6 {[%clk 0:02:19]} 15. h4 {[%clk 0:02:33]}  Nxg4 {[%clk 0:01:58]} 16. Qg3 {[%clk 0:02:28]}  h5 {[%clk 0:01:46]} 17. f3 {[%clk 0:02:25]}  Nf6 {[%clk 0:01:43]} 18. Qxg7 {[%clk 0:02:24]}  Qc7 {[%clk 0:01:27]} 19. Qg5 {[%clk 0:02:13]}  a5 {[%clk 0:01:27]} 20. Kb1 {[%clk 0:01:54]}  Rhc8 {[%clk 0:01:18]} 21. Bd3 {[%clk 0:01:48]}  a4 {[%clk 0:01:16]} 22. Na1 {[%clk 0:01:17]}  a3 {[%clk 0:01:10]} 23. b3 {[%clk 0:01:17]}  Qc3 {[%clk 0:01:02]} 24. Qc1 {[%clk 0:01:17]}  Rg8 {[%clk 0:00:51]} 25. Be2 {[%clk 0:01:15]}  d5 {[%clk 0:00:48]} 26. Qd2 {[%clk 0:01:06]}  Qb2# {[%clk 0:00:48]} 0-1


[Site "https://www.chess.com"]

[Event "Titled Tuesday Blitz November 16 2021"]
[White "Tologon tegin, Semetei"]
[Black "Nesterov, Arseniy"]
[WhiteFideId "13800574"]
[BlackFideId "24198455"]
[WhiteElo "2224"]
[BlackElo "2489"]
[Result "0-1"]
[Round "02"]
[TimeControl "180+1"]
[Date "2021.11.16"]
[WhiteClock "0:00:05"]
[BlackClock "0:00:09"]

1. e4 {[%clk 0:03:00]}  e5 {[%clk 0:02:59]} 2. Nf3 {[%clk 0:02:57]}  Nc6 {[%clk 0:02:59]} 3. Be2 {[%clk 0:02:51]}  Nf6 {[%clk 0:02:56]} 4. d3 {[%clk 0:02:51]}  d5 {[%clk 0:02:54]} 5. exd5 {[%clk 0:02:49]}  Nxd5 {[%clk 0:02:54]} 6. O-O {[%clk 0:02:49]}  Be7 {[%clk 0:02:45]} 7. Nc3 {[%clk 0:02:48]}  O-O {[%clk 0:02:45]} 8. Re1 {[%clk 0:02:47]}  Re8 {[%clk 0:02:45]} 9. h3 {[%clk 0:02:46]}  h6 {[%clk 0:02:44]} 10. Bf1 {[%clk 0:02:45]}  Bf8 {[%clk 0:02:44]} 11. Bd2 {[%clk 0:02:44]}  Bf5 {[%clk 0:02:41]} 12. Nxd5 {[%clk 0:02:40]}  Qxd5 {[%clk 0:02:42]} 13. Bc3 {[%clk 0:02:40]}  Rad8 {[%clk 0:02:39]} 14. Nh4 {[%clk 0:02:36]}  Bh7 {[%clk 0:02:35]} 15. Qg4 {[%clk 0:02:35]}  a5 {[%clk 0:02:25]} 16. a3 {[%clk 0:02:33]}  Bc5 {[%clk 0:02:02]} 17. g3 {[%clk 0:02:26]}  f5 {[%clk 0:01:54]} 18. Qh5 {[%clk 0:02:17]}  Nd4 {[%clk 0:01:21]} 19. Bg2 {[%clk 0:02:14]}  Qd6 {[%clk 0:01:17]} 20. Rac1 {[%clk 0:01:56]}  b6 {[%clk 0:01:08]} 21. Rf1 {[%clk 0:01:27]}  Rf8 {[%clk 0:00:59]} 22. Kh2 {[%clk 0:01:22]}  f4 {[%clk 0:00:56]} 23. Nf3 {[%clk 0:01:05]}  Bg6 {[%clk 0:00:51]} 24. Qg4 {[%clk 0:00:53]}  h5 {[%clk 0:00:26]} 25. Qg5 {[%clk 0:00:47]}  Rf5 {[%clk 0:00:25]} 26. Qh4 {[%clk 0:00:46]}  Rdf8 {[%clk 0:00:24]} 27. Bxd4 {[%clk 0:00:34]}  exd4 {[%clk 0:00:10]} 28. g4 {[%clk 0:00:34]}  hxg4 {[%clk 0:00:09]} 29. hxg4 {[%clk 0:00:35]}  R5f6 {[%clk 0:00:08]} 30. Rh1 {[%clk 0:00:35]}  Bxd3 {[%clk 0:00:05]} 31. g5 {[%clk 0:00:33]}  Re6 {[%clk 0:00:03]} 32. cxd3 {[%clk 0:00:33]}  Re2 {[%clk 0:00:04]} 33. Kg1 {[%clk 0:00:32]}  Qg6 {[%clk 0:00:04]} 34. Re1 {[%clk 0:00:25]}  Rfe8 {[%clk 0:00:03]} 35. Rxe2 {[%clk 0:00:17]}  Rxe2 {[%clk 0:00:04]} 36. Qxf4 {[%clk 0:00:17]}  Rxb2 {[%clk 0:00:03]} 37. Ne5 {[%clk 0:00:15]}  Rb1+ {[%clk 0:00:03]} 38. Bf1 {[%clk 0:00:12]}  Qe6 {[%clk 0:00:04]} 39. g6 {[%clk 0:00:11]}  Qf6 {[%clk 0:00:02]} 40. Qxf6 {[%clk 0:00:09]}  gxf6 {[%clk 0:00:03]} 41. Ng4 {[%clk 0:00:09]}  Kg7 {[%clk 0:00:03]} 42. Rh6 {[%clk 0:00:07]}  f5 {[%clk 0:00:03]} 43. Rh7+ {[%clk 0:00:02]}  Kxg6 {[%clk 0:00:03]} 44. Rxc7 {[%clk 0:00:02]}  fxg4 {[%clk 0:00:04]} 45. Kg2 {[%clk 0:00:03]}  Bxa3 {[%clk 0:00:03]} 46. Rc6+ {[%clk 0:00:03]}  Kg5 {[%clk 0:00:04]} 47. Be2 {[%clk 0:00:04]}  Bc5 {[%clk 0:00:04]} 48. f3 {[%clk 0:00:02]}  gxf3+ {[%clk 0:00:04]} 49. Kxf3 {[%clk 0:00:03]}  Kf5 {[%clk 0:00:04]} 50. Rc8 {[%clk 0:00:04]}  Ke5 {[%clk 0:00:04]} 51. Kf2 {[%clk 0:00:04]}  a4 {[%clk 0:00:05]} 52. Bf3 {[%clk 0:00:04]}  a3 {[%clk 0:00:05]} 53. Ra8 {[%clk 0:00:05]}  Kf4 {[%clk 0:00:05]} 54. Be4 {[%clk 0:00:04]}  Rb2+ {[%clk 0:00:05]} 55. Kg1 {[%clk 0:00:05]}  a2 {[%clk 0:00:06]} 56. Kh1 {[%clk 0:00:02]}  Rb1+ {[%clk 0:00:06]} 57. Kg2 {[%clk 0:00:03]}  a1=Q {[%clk 0:00:07]} 58. Rxa1 {[%clk 0:00:02]}  Rxa1 {[%clk 0:00:07]} 59. Kh3 {[%clk 0:00:03]}  Ke3 {[%clk 0:00:08]} 60. Kh4 {[%clk 0:00:03]}  Rd1 {[%clk 0:00:08]} 61. Kg4 {[%clk 0:00:04]}  Rxd3 {[%clk 0:00:09]} 62. Kf5 {[%clk 0:00:05]}  Rd2 {[%clk 0:00:09]} 0-1


[Site "https://www.chess.com"]

[Event "Titled Tuesday Blitz November 16 2021"]
[White "Willow, Jonah B"]
[Black "Glavina, Pablo"]
[WhiteFideId "438804"]
[BlackFideId "100234"]
[WhiteElo "2261"]
[BlackElo "2369"]
[Result "1-0"]
[Round "02"]
[TimeControl "180+1"]
[Date "2021.11.16"]
[WhiteClock "0:00:14"]
[BlackClock "0:00:02"]

1. e4 {[%clk 0:03:00]}  e5 {[%clk 0:03:00]} 2. Nf3 {[%clk 0:03:01]}  Nc6 {[%clk 0:03:00]} 3. Nc3 {[%clk 0:03:01]}  Nf6 {[%clk 0:03:00]} 4. Bb5 {[%clk 0:03:02]}  Bd6 {[%clk 0:02:59]} 5. d3 {[%clk 0:03:02]}  a6 {[%clk 0:02:59]} 6. Ba4 {[%clk 0:03:02]}  h6 {[%clk 0:02:58]} 7. a3 {[%clk 0:02:52]}  b5 {[%clk 0:02:57]} 8. Bb3 {[%clk 0:02:51]}  Bb7 {[%clk 0:02:58]} 9. Ne2 {[%clk 0:02:39]}  Qe7 {[%clk 0:02:57]} 10. Ng3 {[%clk 0:02:38]}  g6 {[%clk 0:02:57]} 11. O-O {[%clk 0:02:35]}  Bc5 {[%clk 0:02:51]} 12. c3 {[%clk 0:02:34]}  d6 {[%clk 0:02:49]} 13. d4 {[%clk 0:02:28]}  Bb6 {[%clk 0:02:49]} 14. Re1 {[%clk 0:02:26]}  Kf8 {[%clk 0:02:45]} 15. h3 {[%clk 0:02:19]}  Kg7 {[%clk 0:02:44]} 16. Be3 {[%clk 0:02:19]}  Na5 {[%clk 0:02:39]} 17. Bc2 {[%clk 0:02:18]}  Nc4 {[%clk 0:02:38]} 18. Bc1 {[%clk 0:02:16]}  c5 {[%clk 0:02:33]} 19. b3 {[%clk 0:02:12]}  Na5 {[%clk 0:02:33]} 20. d5 {[%clk 0:02:11]}  Rac8 {[%clk 0:02:25]} 21. Be3 {[%clk 0:02:10]}  Qd8 {[%clk 0:02:20]} 22. Rb1 {[%clk 0:02:03]}  Qc7 {[%clk 0:02:10]} 23. Qd2 {[%clk 0:02:02]}  Rcf8 {[%clk 0:01:52]} 24. Nh4 {[%clk 0:01:58]}  Bc8 {[%clk 0:01:52]} 25. Qe2 {[%clk 0:01:53]}  Bd7 {[%clk 0:01:42]} 26. Rf1 {[%clk 0:01:50]}  c4 {[%clk 0:01:31]} 27. b4 {[%clk 0:01:47]}  Nb7 {[%clk 0:01:28]} 28. Kh1 {[%clk 0:01:44]}  Nd8 {[%clk 0:01:27]} 29. f4 {[%clk 0:01:41]}  Bxe3 {[%clk 0:01:26]} 30. Qxe3 {[%clk 0:01:41]}  exf4 {[%clk 0:01:22]} 31. Qxf4 {[%clk 0:01:42]}  Nh7 {[%clk 0:01:21]} 32. Rbe1 {[%clk 0:01:38]}  f6 {[%clk 0:01:20]} 33. Ne2 {[%clk 0:01:25]}  Nf7 {[%clk 0:01:19]} 34. Nd4 {[%clk 0:01:23]}  Ne5 {[%clk 0:01:18]} 35. Qg3 {[%clk 0:01:22]}  Ng5 {[%clk 0:01:15]} 36. Rf2 {[%clk 0:01:16]}  Rf7 {[%clk 0:01:14]} 37. Ref1 {[%clk 0:01:16]}  Rhf8 {[%clk 0:01:14]} 38. Nhf3 {[%clk 0:01:04]}  Re8 {[%clk 0:01:08]} 39. h4 {[%clk 0:00:59]}  Nh7 {[%clk 0:01:06]} 40. Nh2 {[%clk 0:00:46]}  Qc8 {[%clk 0:01:01]} 41. h5 {[%clk 0:00:33]}  g5 {[%clk 0:00:56]} 42. Nhf3 {[%clk 0:00:32]}  Nxf3 {[%clk 0:00:41]} 43. gxf3 {[%clk 0:00:33]}  Kh8 {[%clk 0:00:37]} 44. Qxd6 {[%clk 0:00:33]}  g4 {[%clk 0:00:34]} 45. fxg4 {[%clk 0:00:32]}  Bxg4 {[%clk 0:00:34]} 46. Rxf6 {[%clk 0:00:30]}  Nxf6 {[%clk 0:00:30]} 47. Rxf6 {[%clk 0:00:31]}  Bd1 {[%clk 0:00:16]} 48. Rxh6+ {[%clk 0:00:29]}  Kg8 {[%clk 0:00:17]} 49. Rg6+ {[%clk 0:00:27]}  Kh8 {[%clk 0:00:17]} 50. Rh6+ {[%clk 0:00:27]}  Kg8 {[%clk 0:00:17]} 51. Qg3+ {[%clk 0:00:20]}  Rg7 {[%clk 0:00:16]} 52. Rg6 {[%clk 0:00:20]}  Rxg6 {[%clk 0:00:13]} 53. Qxg6+ {[%clk 0:00:21]}  Kh8 {[%clk 0:00:13]} 54. Nf5 {[%clk 0:00:19]}  Qd7 {[%clk 0:00:06]} 55. Bxd1 {[%clk 0:00:18]}  Rxe4 {[%clk 0:00:06]} 56. Qf6+ {[%clk 0:00:18]}  Kh7 {[%clk 0:00:04]} 57. Qg6+ {[%clk 0:00:14]}  Kh8 {[%clk 0:00:04]} 58. Bf3 {[%clk 0:00:13]}  Rf4 {[%clk 0:00:03]} 59. Qh6+ {[%clk 0:00:13]}  Kg8 {[%clk 0:00:02]} 60. Qxf4 {[%clk 0:00:14]}  Qg7 {[%clk 0:00:02]} 61. Nxg7 {[%clk 0:00:14]} 1-0


[Site "https://www.chess.com"]